Cogmind - Beta 13 @@@ ROGUE MODE // 2024.04.22 @ 05:19:23 Player: Millea Result: Destroyed by S-43 Plague with Heavy Machine Gun Performance ------------- Evolutions (7) 3500 Regions Visited (28) 5600 Robots Destroyed (396) 1980 Value Destroyed (15111) 15111 Prototype IDs (40) 800 Alien Tech Used (0) 0 Bonus (7083) 7083 TOTAL SCORE: 34074 Bonus ------- High Alert Combat Kills 2545 Follower Combat Kills 1359 Entered Garrisons 600 Entered DSFs 500 Met Data Miner 300 Acquired ECA 300 Met Warlord at Base 500 MAIN.C Attacked Warlord 500 Warlord Defense Kills 1098 Friendly Fire -619 Cogmind --------- Core Integrity 0/1300 Matter 76/300 Energy 100/100 System Corruption 7% Temperature Cool (0) Movement Core (50) Location -3/Research Parts ------- > --- POWER (2) -------- (None) > --- PROPULSION (8) --- (None) > --- UTILITY (8) ------ Enhanced Optical Array Faulty Spectral Analyzer Experimental Core Analyzer > --- WEAPON (3) ------- (None) > --- INVENTORY (5) ---- Vortex Chain Reactor Heart of Steel Peak State ------------ > --- POWER ------------ Vortex Chain Reactor > --- PROPULSION ------- Antigrav System Cooled Antigrav System Cooled Antigrav System Improved Diametric Drive > --- UTILITY ---------- Advanced Energy Well Experimental Core Analyzer Propulsion Shielding Centrium Light Armor Plating Graphene Brace Thermal Barrier Advanced Remote Shield System Mapper > --- WEAPON ----------- Heavy Autocannon RU-N14's Throwing Claymores v3 > --- INVENTORY -------- Encrypted Comm Array Heart of Steel RU-N14's Throwing Claymores v3 [Rating: 144] Favorites ----------- Power Cooled Ion Engine Engine Cooled Ion Engine Power Core Reinforced Fission Core Reactor Vortex Chain Reactor Propulsion Light Treads Treads Light Treads Leg Armored Leg Hover Unit Cooled Antigrav System Flight Unit Field Propulsion Array Utility Huge Storage Unit Device Graphene Brace Storage Huge Storage Unit Processor Targeting Computer Hackware Hacking Suite Protection Light Armor Plating Weapon Improved Light Cannon Energy Gun Plasma Rifle Energy Cannon Long-range Proton Cannon Ballistic Gun Improved Assault Rifle Ballistic Cannon Improved Light Cannon Launcher Heavy Missile Launcher Special Weapon RU-N14's Throwing Claymores v3 Impact Weapon Great Maul Slashing Weapon Axe Build | -11 -10 -10 -9 -9 -8 -8 -8 -8 -8 -8 -7 -7 -7 -7 -7 -7 -6 -6 -6 -5 -5 -5 -5 -4 -4 -4 -4 -3 ------- Run | Yrd Mat Min Mat Sto Mat Gar Mat Gar Mat Gar Fac Was Fac Low Low Dat Pro Fac DSF Fac Upp Upp War Pro Fac Upp Upp Res Slots Evolved 14 | . . . 2 . 2 . . . . . 2 . . . . . . 2 . 2 . . . . 2 . . 2 Power 1 | . . . . . . . . . . . . . . . . . . . . 1 . . . . . . . . Propulsion 6 | . . . 1 . . . . . . . . . . . . . . . . 1 . . . . 2 . . 2 Utility 6 | . . . 1 . 1 . . . . . 2 . . . . . . 2 . . . . . . . . . . Weapon 1 | . . . . . 1 . . . . . . . . . . . . . . . . . . . . . . . Parts Attached 368 | 6 8 4 39 23 13 9 5 6 . 13 3 14 17 5 10 2 17 . 22 68 16 2 26 6 33 . . 1 Power 32 | 1 . . 2 2 1 . 1 . . 1 1 . 4 . . . 1 . 1 11 1 . 1 1 3 . . . Engine 15 | 1 . . 2 2 1 . . . . . . . 1 . . . 1 . 1 5 1 . . . . . . . Core 12 | . . . . . . . 1 . . 1 1 . 3 . . . . . . 6 . . . . . . . . Reactor 5 | . . . . . . . . . . . . . . . . . . . . . . . 1 1 3 . . . Propulsion 73 | 1 2 1 14 6 4 4 2 1 . 3 . 1 4 . . . 2 . 3 12 3 . 5 . 5 . . . Treads 61 | 1 2 1 14 6 4 4 2 1 . 3 . 1 3 . . . 2 . 3 12 2 . . . . . . . Leg 1 | . . . . . . . . . . . . . . . . . . . . . 1 . . . . . . . Wheel . | . . . . . . . . . . . . . . . . . . . . . . . . . . . . . Hover 4 | . . . . . . . . . . . . . 1 . . . . . . . . . 3 . . . . . Flight 7 | . . . . . . . . . . . . . . . . . . . . . . . 2 . 5 . . . Utility 129 | 1 4 . 6 9 6 2 1 3 . 7 2 4 5 2 9 . 8 . 8 16 7 . 12 2 14 . . 1 Device 59 | . 1 . 2 . 2 . . 2 . 6 2 2 1 2 4 . 2 . 1 11 7 . 6 1 7 . . . Storage 11 | 1 2 . . 1 . . . . . . . . 1 . 2 . 1 . 1 . . . 1 . 1 . . . Processor 9 | . 1 . 3 . . . . . . . . . . . . . 1 . . 1 . . 1 . 1 . . 1 Hackware 9 | . . . . 4 1 . . . . . . . . . . . 1 . . . . . 1 . 2 . . . Protection 41 | . . . 1 4 3 2 1 1 . 1 . 2 3 . 3 . 3 . 6 4 . . 3 1 3 . . . Artifact . | . . . . . . . . . . . . . . . . . . . . . . . . . . . . . Weapon 134 | 3 2 3 17 6 2 3 1 2 . 2 . 9 4 3 1 2 6 . 10 29 5 2 8 3 11 . . . Energy Gun 10 | 1 . . . . . . . . . . . . . . . . . . . 3 2 2 2 . . . . . Energy Cannon 25 | . . . . . . . . . . . . . . . . . . . 3 16 1 . . . 5 . . . Ballistic Gun 47 | 2 . 2 3 3 1 3 1 2 . 2 . 4 1 2 . 2 3 . 4 7 . . . . 5 . . . Ballistic Cannon 25 | . 2 1 10 2 1 . . . . . . 2 2 . . . 1 . 1 . . . 1 2 . . . . Launcher 18 | . . . 4 1 . . . . . . . 3 1 1 . . 2 . 2 3 . . . . 1 . . . Special Weapon 7 | . . . . . . . . . . . . . . . . . . . . . 1 . 5 1 . . . . Impact Weapon 1 | . . . . . . . . . . . . . . . 1 . . . . . . . . . . . . . Slashing Weapon 1 | . . . . . . . . . . . . . . . . . . . . . 1 . . . . . . . Piercing Weapon . | . . . . . . . . . . . . . . . . . . . . . . . . . . . . . Special Melee Weapon . | . . . . . . . . . . . . . . . . . . . . . . . . . . . . . Unidentified Prototypes 22 | . . . . 1 1 . . . . . . 1 1 . 1 . 1 . . 1 1 . 11 . 2 . . 1 Corrupted Parts 5 | . . . . . . . . . . . . . . . . . . . . 4 . . . . 1 . . . System Corruption 13 | . . . . . . . . . . . . . . . . . . . . 12 . . . . 1 . . . Parts Lost 127 | . . 3 4 11 4 8 . 2 . 6 . 7 9 1 . . 5 . 4 35 10 . . 2 11 1 1 3 Power 10 | . . . . 1 . . . . . . . . 3 . . . . . . 4 1 . . . 1 . . . Propulsion 44 | . . 1 2 6 2 4 . . . 3 . 3 1 . . . 3 . 2 10 2 . . 1 2 1 . 1 Utility 33 | . . . 1 . 2 2 . 1 . 1 . 1 3 . . . 2 . 1 8 2 . . 1 6 . . 2 Weapon 40 | . . 2 1 4 . 2 . 1 . 2 . 3 2 1 . . . . 1 13 5 . . . 2 . 1 . Highest Loss Streak 7 | . . 3 2 4 2 5 . 2 . 3 . 7 4 1 . . 2 . 2 7 6 . . 2 5 1 1 3 To Critical Strikes . | . . . . . . . . . . . . . . . . . . . . . . . . . . . . . Average Slot Usage (%) 90 | . 99 99 99 99 99 99 99 100 100 95 92 55 73 91 87 78 81 80 89 94 78 88 84 70 56 39 30 21 Engine 7 | . 14 14 10 10 9 9 3 . . . . 6 1 7 7 7 7 6 4 6 2 5 4 . . . . . Core 1 | . . . . . . . 5 9 9 9 7 . 4 . . . . . . 3 5 5 4 . . . . . Treads 23 | . 27 28 33 33 27 26 27 27 27 27 23 7 16 23 23 23 21 13 16 22 19 17 14 . . . . . Device 8 | . 2 . . . 5 9 9 12 18 13 23 1 4 22 15 15 12 13 12 16 21 23 21 17 7 5 5 2 Storage 10 | . 14 14 11 10 9 9 9 9 9 9 7 . 4 7 13 15 11 13 16 13 11 11 9 . 4 . . . Processor 5 | . 10 14 20 . . . . . . . . . . . . . 6 6 3 . 2 . . 5 9 10 10 13 Hackware 3 | . . . . 14 16 . . . . . . . . . . . 5 6 6 5 . . . 5 8 5 5 1 Protection 5 | . . . 1 7 5 18 17 14 9 9 7 11 10 7 6 7 6 . 11 5 . . . 13 3 . . . Energy Gun 1 | . . . . . . . . . . . . 6 . . . . . . . . 5 12 12 . . . . . Ballistic Gun 9 | . 8 12 6 10 11 25 26 27 27 26 23 5 6 6 15 2 1 6 2 5 . . . . . 8 4 . Ballistic Cannon 7 | . 19 15 15 10 14 1 . . . . . 6 14 12 1 . . . . . . . . . . . . . Naked Turns 36 | . . . . . . . . . . . . 24 . . . . . . . . . . 12 . . . . . Heaviest Build 123 | 14 91 91 99 101 109 109 108 107 104 121 123 122 117 98 95 92 80 80 100 115 97 100 110 89 99 11 6 1 Greatest Support 120 | 20 40 40 66 66 60 60 60 60 60 63 63 63 86 84 84 84 84 56 90 120 108 81 81 37 45 11 7 7 Greatest Overweight (x) 14 | . 2 2 1 1 1 2 1 1 1 1 1 2 2 1 1 1 1 1 14 1 1 1 2 2 2 . . . Average Overweight (x) . | . . 2 1 1 1 1 1 1 1 1 1 1 1 1 . . . 1 1 . . 1 1 . . . . . Largest Inventory Capacity 25 | 8 25 25 25 25 25 25 25 25 25 25 25 25 20 20 20 20 20 20 20 20 20 20 20 5 20 5 5 5 Average Capacity 21 | 6 20 25 25 24 25 25 25 25 25 25 25 5 15 20 20 20 20 20 20 20 20 20 17 5 17 5 5 5 Most Carried 25 | 6 25 25 25 25 25 25 25 25 25 25 23 24 13 14 20 20 20 16 20 20 20 20 20 5 20 5 5 5 Average Carried 19 | 4 15 24 24 22 24 23 24 24 25 23 22 5 7 11 18 20 18 16 18 15 19 19 17 3 12 5 5 5 Final Capacity 25 | 8 25 25 25 25 25 25 25 25 25 25 25 5 20 20 20 20 20 20 20 20 20 20 5 5 5 5 5 5 Final Carried 25 | 6 25 25 22 25 24 23 25 25 25 23 23 5 8 13 20 20 16 16 20 20 20 20 5 4 5 5 5 5 Class Distribution -------------------- 37% | Mutant 15% | Scavenger-Tank 14% | Tank 7% | Scavenger-Mutant 5% | Hacker-Mutant 5% | Scavenger-Skirmisher 3% | Commander-Tank 3% | Commander-Mutant Dominant Class ---------------- Mutant | -10/Materials Mutant | -10/Mines Mutant | -9/Materials Scavenger-Mutant | -9/Storage Commander-Tank | -8/Materials Scavenger-Tank | -8/Garrison Scavenger-Tank | -8/Materials Scavenger-Tank | -8/Garrison Tank | -8/Materials Tank | -8/Garrison Tank | -7/Factory Tank | -7/Waste Tank | -7/Factory Tank | -7/Lower Caves Mutant | -7/Lower Caves Mutant | -7/Data Miner Mutant | -6/Proximity Caves Scavenger-Gunner | -6/Factory Scavenger-Tank | -6/DSF Scavenger-Tank | -5/Factory Scavenger-Mutant | -5/Upper Caves Scavenger-Skirmisher | -5/Upper Caves Scavenger-Skirmisher | -5/Warlord Hacker-Mutant | -4/Proximity Caves Hacker-Mutant | -4/Factory Hacker-Sprinter | -4/Upper Caves Hacker-Sprinter | -4/Upper Caves Mutant | -3/Research Resources | -11 -10 -10 -9 -9 -8 -8 -8 -8 -8 -8 -7 -7 -7 -7 -7 -7 -6 -6 -6 -5 -5 -5 -5 -4 -4 -4 -4 -3 ----------- Run | Yrd Mat Min Mat Sto Mat Gar Mat Gar Mat Gar Fac Was Fac Low Low Dat Pro Fac DSF Fac Upp Upp War Pro Fac Upp Upp Res Matter Collected 12907 | 184 621 179 1338 1149 901 860 547 419 . 660 . 356 908 287 966 . 354 . 337 1353 633 47 308 219 281 . . . Remotely 260 | . . . . . . . . . . 260 . . . . . . . . . . . . . . . . . . Salvage Created 15152 | 15 589 188 1645 1690 1111 1065 626 439 . 651 . 10 1173 507 335 . 364 . 603 3216 497 . 169 181 78 . . . Parts 818 | 1 35 7 125 116 64 65 35 25 . 32 . . 68 28 6 . 12 . 31 143 13 . 2 3 7 . . . Haulers Intercepted 23 | . 2 . 6 6 4 . 2 . . . . . 1 . . . . . 1 1 . . . . . . . . Recyclers Shooed 8 | . . . 1 . . . . . . . . . 3 . . . . . . 4 . . . . . . . . Parts Field Recycled . | . . . . . . . . . . . . . . . . . . . . . . . . . . . . . Retrieved Matter . | . . . . . . . . . . . . . . . . . . . . . . . . . . . . . Parts Self-Destructed 47 | . . . . . . . . . . . . . . 8 10 . 17 . . . 9 . . 3 . . . . Prevented 3 | . . . . . . . . . . . . . . . . . . . . . 3 . . . . . . . Kills | -11 -10 -10 -9 -9 -8 -8 -8 -8 -8 -8 -7 -7 -7 -7 -7 -7 -6 -6 -6 -5 -5 -5 -5 -4 -4 -4 -4 -3 ------- Run | Yrd Mat Min Mat Sto Mat Gar Mat Gar Mat Gar Fac Was Fac Low Low Dat Pro Fac DSF Fac Upp Upp War Pro Fac Upp Upp Res Combat Hostiles Destroyed 313 | . 13 5 52 36 25 28 8 11 . 14 . . 29 2 . . 8 . 10 45 9 . 9 6 3 . . . Melee 3 | . . . . . . . . . . . . . . . . . . . . 1 2 . . . . . . . Guns 142 | . 9 . 7 17 7 28 8 11 . 14 . . 10 2 . . 3 . 2 17 5 . . . 2 . . . Cannons 109 | . 4 5 34 19 18 . . . . . . . 8 . . . 1 . 4 11 . . 1 3 1 . . . AOE 46 | . . . 11 . . . . . . . . . 11 . . . 3 . 3 7 . . 8 3 . . . . Classes Destroyed 23 | 1 6 1 2 2 3 1 . . . 1 . . . 1 1 . 1 . 1 . . . 2 . . . . . Worker 9 | 1 . . . 1 . . . . . . . . 1 . . . . . . 6 . . . . . . . . Builder 15 | . . . 1 1 1 . . . . . . . 5 . . . . . . 7 . . . . . . . . Tunneler 2 | . . . . . 1 . 1 . . . . . . . . . . . . . . . . . . . . . Hauler 23 | . 2 . 6 6 4 . 2 . . . . . 1 . . . . . 1 1 . . . . . . . . Recycler 12 | . 1 . 1 2 2 . 1 . . . . . 3 . . . . . . 2 . . . . . . . . Mechanic 3 | . . . . . 1 . 1 . . . . . 1 . . . . . . . . . . . . . . . Operator 7 | . 2 . 1 2 1 . 1 . . . . . . . . . . . . . . . . . . . . . Drone 1 | . . . . . . . . . . . . . . . . . 1 . . . . . . . . . . . Watcher 13 | . 2 . 5 2 2 . . . . . . . . . . . . . . 2 . . . . . . . . Swarmer 62 | . 3 . 15 7 10 8 . 3 . 4 . . 2 . . . . . 3 4 . . . . 3 . . . Saboteur 1 | . . . . . . . . . . . . . . . . . . . . . . . 1 . . . . . Grunt 156 | . 10 3 26 18 10 11 3 5 . 6 . . 19 . . . 4 . 2 20 8 . 6 5 . . . . Brawler 8 | . . . 1 1 1 . 1 . . . . . 3 . . . . . 1 . . . . . . . . . Duelist 8 | . . . . 3 . 1 . . . . . . 1 . . . . . . 3 . . . . . . . . Protector 3 | . . . . 2 . . . . . . . . 1 . . . . . . . . . . . . . . . Sentry 40 | . . 2 10 6 2 3 4 3 . 2 . . 3 . . . 1 . . 3 . . . 1 . . . . Specialist 7 | . . . . . 2 1 . . . . . . . . . . . . 2 2 . . . . . . . . Hunter 15 | . . . . . . 4 . . . 1 . . . 1 . . 2 . . 6 1 . . . . . . . Programmer 6 | . . . . . . . . . . . . . . 1 . . . . 1 4 . . . . . . . . Heavy 3 | . . . . . . . . . . . . . . . . . . . 1 2 . . . . . . . . Behemoth 1 | . . . . . . . . . . 1 . . . . . . . . . . . . . . . . . . Executioner 1 | . . . . . . . . . . . . . . . . . . . . . . . 1 . . . . . Decomposer 1 | . . . . . . . . . . . . . . . 1 . . . . . . . . . . . . . Samaritan 1 | . . . . . . . . . . . . . . . 1 . . . . . . . . . . . . . Wasp 1 | . . . . . . . . . . . . 1 . . . . . . . . . . . . . . . . Thug 1 | . . . . . . . . . . . . . 1 . . . . . . . . . . . . . . . Marauder 1 | . . . . . . . . . . . . . . . . . . . . . . . 1 . . . . . Infiltrator 1 | . . . . . . . . . . . . . . . . . . . . 1 . . . . . . . . Best Kill Streak 22 | 1 4 2 10 9 7 8 5 5 . 5 . . 22 1 . . 4 . 3 13 3 . 5 3 3 . . . Combat Bots Only 16 | . 3 2 9 9 7 8 3 5 . 5 . . 16 1 . . 4 . 3 7 3 . 5 3 3 . . . Max Kills in Single Turn 5 | 1 1 1 4 2 3 2 2 1 . 2 . 1 4 1 1 . 1 . 1 3 1 . 5 3 1 . . . Gunslinging 1 | . . . 1 . . 1 . . . 1 . . . . . . . . . . . . . . . . . . Exploded 4 | . . . 3 . . . . . . . . . 2 . . . 1 . 1 3 . . 4 3 . . . . Melee 1 | . . . . . . . . . . . . . . . . . . . . 1 1 . . . . . . . Uniques/NPCs Destroyed . | . . . . . . . . . . . . . . . . . . . . . . . . . . . . . Combat | -11 -10 -10 -9 -9 -8 -8 -8 -8 -8 -8 -7 -7 -7 -7 -7 -7 -6 -6 -6 -5 -5 -5 -5 -4 -4 -4 -4 -3 -------- Run | Yrd Mat Min Mat Sto Mat Gar Mat Gar Mat Gar Fac Was Fac Low Low Dat Pro Fac DSF Fac Upp Upp War Pro Fac Upp Upp Res Hostile Shots Fired 2416 | . 55 40 211 139 118 164 22 67 . 148 . 2 207 6 15 . 105 . 97 492 109 . 29 74 123 58 3 132 Missed 744 | . 11 12 76 48 25 53 5 10 . 39 . 1 59 2 7 . 39 . 36 122 23 . 13 32 38 30 2 61 Damage Taken 27104 | . 519 428 1567 1272 1070 1263 191 484 . 1561 . 670 2596 64 60 . 922 . 1164 6925 1635 . 339 597 1774 506 23 1474 Core 3993 | . 72 30 196 124 97 129 9 57 . 222 . 99 60 . . . 40 . 159 632 131 . 70 21 358 184 . 1303 Absorbed by Shields 1914 | . . . . . 208 436 68 343 . 227 . 58 . . . . . . . 425 . . 28 121 . . . . Redirected to Shielding 143 | . . . . . . 23 . 7 . 27 . . . . . . 1 . . 44 . . . 41 . . . . Ignored by Resistances 294 | . . . . . . . . . . . . . 58 . . . . . . . . . 34 202 . . . . Regen/Repaired (Parts) 1645 | . 85 . 109 587 . . 209 . . . . 124 . . . . . . . . . . 531 . . . . . Core Remaining (%) 50 | 100 . 59 . 20 . . . . . 6 . . . . . . 71 . 81 . . . . 14 . . 52 . Volleys Fired 1009 | 6 67 17 116 103 68 79 39 39 . 44 . 9 65 18 19 . 22 . 30 181 42 . 7 18 18 2 . . Largest 3 | 2 2 2 2 2 3 3 3 3 . 3 . 3 3 3 1 . 3 . 3 3 3 . 3 1 1 2 . . Hottest 520 | 40 70 70 78 78 106 87 76 78 . 78 . 117 135 124 28 . 520 . 520 260 199 . 90 90 110 66 . . Shots Fired 2117 | 12 134 34 222 201 204 212 117 112 . 122 . 20 152 25 20 . 33 . 68 319 56 . 13 18 18 4 1 . Gun 1293 | 12 86 3 37 127 88 201 117 112 . 122 . 5 57 18 20 . 23 . 29 168 54 . 1 . 8 4 1 . Cannon 746 | . 48 31 167 71 116 11 . . . . . . 85 6 . . 5 . 34 144 . . 3 15 10 . . . Launcher 64 | . . . 18 3 . . . . . . . 15 10 1 . . 5 . 5 7 . . . . . . . . Special 14 | . . . . . . . . . . . . . . . . . . . . . 2 . 9 3 . . . . Kinetic 1794 | 12 134 34 204 198 204 212 117 112 . 122 . . 142 24 20 . 28 . 31 168 1 . 3 15 8 4 1 . Thermal 61 | . . . . . . . . . . . . 5 . . . . 5 . 5 2 44 . . . . . . . Explosive 64 | . . . 18 3 . . . . . . . 15 10 1 . . . . . 5 . . 9 3 . . . . Electromagnetic 197 | . . . . . . . . . . . . . . . . . . . 32 144 11 . . . 10 . . . Entropic 1 | . . . . . . . . . . . . . . . . . . . . . . . 1 . . . . . Robot Hit Streak 21 | 1 11 13 13 13 12 8 16 16 . 18 . 8 11 21 7 . 4 . 9 12 14 . 3 4 8 1 . . Robot Miss Streak 10 | 2 3 3 4 3 10 4 4 3 . 6 . 5 8 . 1 . 4 . 3 3 2 . 2 3 2 2 . . Penetration Max 1 | . . . . . . . . . . . . . 1 1 1 . . . 1 1 1 . . . . . . . Secondary Targets 24 | . 2 . 2 3 . 4 1 3 . 6 . . . . . . . . 1 1 1 . . . . . . . Max Gunslinging Chain 2 | . 1 . 1 1 . 1 1 1 . 2 . . . . . . . . 1 1 1 . . . . . . . Shots Hit Robots 1351 | 4 83 24 149 135 136 126 78 63 . 83 . 12 85 21 16 . 18 . 43 200 43 . 6 12 12 2 . . Core Hits 687 | 1 30 8 74 63 83 53 23 18 . 30 . 3 86 14 9 . 15 . 17 100 23 . 16 13 7 . . 1 Critical Kills 9 | . . . . 1 . 1 1 . . . . . 2 . . . . . . 4 . . . . . . . . Critical Parts Destroyed 16 | 1 1 . . 1 . 1 . . . 2 . . 5 . . . . . 1 4 . . . . . . . . Critical Strikes 43 | 1 3 . 4 5 3 3 1 . . 2 . . 7 . . . . . 1 8 4 . . 1 . . . . Burn 4 | . . . . . . . . . . . . . . . . . . . . . 4 . . . . . . . Destroy 25 | 1 1 . . 2 . 2 1 . . 2 . . 7 . . . . . 1 8 . . . . . . . . Blast 14 | . 2 . 4 3 3 1 . . . . . . . . . . . . . . . . . 1 . . . . Melee Attacks 1 | . . . . . . . . . . . . . . . . . . . . . . 1 . . . . . . Impact . | . . . . . . . . . . . . . . . . . . . . . . . . . . . . . Slashing 1 | . . . . . . . . . . . . . . . . . . . . . . 1 . . . . . . Piercing . | . . . . . . . . . . . . . . . . . . . . . . . . . . . . . Sneak Attacks . | . . . . . . . . . . . . . . . . . . . . . . . . . . . . . Combat Hostiles . | . . . . . . . . . . . . . . . . . . . . . . . . . . . . . Follow-up Attacks . | . . . . . . . . . . . . . . . . . . . . . . . . . . . . . Damage Inflicted 40612 | 50 1251 449 4133 2502 2604 2360 1394 1098 . 1483 . 1792 4306 515 318 . 799 . 1405 8680 941 . 2720 1563 211 34 . 4 Guns 16675 | 50 726 33 453 1462 950 2110 1393 1097 . 1483 . 38 863 423 318 . 252 . 416 3631 842 . . . 101 34 . . Cannons 12371 | . 511 397 2456 1010 1619 125 . . . . . . 1401 92 . . 42 . 602 3213 . . 58 735 110 . . . Explosions 10852 | . . . 1188 . . 125 . . . . . 1754 1995 . . . 505 . 387 1782 . . 2396 720 . . . . Melee . | . . . . . . . . . . . . . . . . . . . . . . . . . . . . . Ramming 315 | . 14 19 36 30 35 . 1 1 . . . . 47 . . . . . . 54 74 . . . . . . 4 Kinetic 24367 | 50 1237 430 2909 2472 2569 2235 1393 1097 . 1483 . . 2264 515 318 . 294 . 483 3631 59 . 58 735 101 34 . . Thermal 2595 | . . . . . . . . . . . . 38 . . . . 505 . 387 1005 660 . . . . . . . Explosive 8955 | . . . 1188 . . 125 . . . . . 1754 1995 . . . . . . 777 . . 2396 720 . . . . Electromagnetic 4006 | . . . . . . . . . . . . . . . . . . . 535 3213 148 . . . 110 . . . Impact . | . . . . . . . . . . . . . . . . . . . . . . . . . . . . . Slashing 374 | . . . . . . . . . . . . . . . . . . . . . . . 266 108 . . . . Piercing . | . . . . . . . . . . . . . . . . . . . . . . . . . . . . . Highest Corruption 20 | . . . 3 3 . . 2 2 2 2 . . 3 5 5 5 5 . 3 20 20 20 20 . 5 5 5 7 Average Corruption 6 | . . . 3 3 . . 2 2 2 2 . . 3 3 5 5 2 . 2 13 20 20 20 . 2 5 5 5 Corruption Purged 4 | . . . . . . . . . . . . . . . . . 3 . . . . . . . 1 . . . Corruption Blocked . | . . . . . . . . . . . . . . . . . . . . . . . . . . . . . Effects 369 | . . . 13 54 . . 11 13 1 8 . . 5 22 53 2 11 . 7 71 54 23 9 . 4 3 2 3 Message Errors 85 | . . . 1 14 . . . 4 . 2 . . 2 5 13 . 5 . 1 11 13 6 4 . 2 . 1 1 Matter Fused 95 | . . . 5 16 . . 4 1 1 . . . 2 6 19 1 1 . 1 13 13 7 3 . . 1 . 1 Heat Flow Errors 39 | . . . 1 9 . . 2 2 . . . . . 2 6 . 1 . 1 9 1 2 1 . . 1 . 1 Energy Discharges 46 | . . . 2 4 . . 1 1 . 3 . . 1 1 7 . 1 . 1 12 9 3 . . . . . . Parts Rejected 5 | . . . . . . . . . . 1 . . . . . . 1 . 1 1 1 . . . . . . . Parts Fused 7 | . . . . 2 . . 1 . . . . . . . . . . . . 2 2 . . . . . . . Data Loss (minor) 38 | . . . 1 5 . . 1 2 . 2 . . . 2 6 1 . . 1 6 7 2 . . 2 . . . Data Loss (major) 16 | . . . 1 . . . 2 . . . . . . 4 1 . 2 . . 1 3 2 . . . . . . Misfires 12 | . . . 2 3 . . . 1 . . . . . 1 1 . . . . 1 2 . . . . . 1 . Alerts 5 | . . . . . . . . . . . . . . 1 . . . . . . 1 1 1 . . 1 . . Misdirections 2 | . . . . . . . . . . . . . . . . . . . . 2 . . . . . . . . Weapon Failures 19 | . . . . 1 . . . 2 . . . . . . . . . . 1 13 2 . . . . . . . Overload Shots . | . . . . . . . . . . . . . . . . . . . . . . . . . . . . . Overflow Damage 672 | . 18 12 39 1 40 34 . . . . . 21 143 . . . . . 48 180 . . 84 52 . . . . Projectiles 318 | . 18 8 12 . 40 . . . . . . . 47 . . . . . . 108 . . 33 52 . . . . Explosions 348 | . . . 27 . . 34 . . . . . 21 95 . . . . . 48 72 . . 51 . . . . . Melee 6 | . . 4 . 1 . . . . . . . . 1 . . . . . . . . . . . . . . . Knockbacks 89 | . 10 1 20 7 33 1 . . . . . . 12 . . . 1 . . . 1 . . 3 . . . . Impact 1 | . . . . . . . . . . . . . . . . . . . . . 1 . . . . . . . Kinetic 82 | . 9 1 18 6 32 1 . . . . . . 12 . . . 1 . . . . . . 2 . . . . Secondary 6 | . 1 . 2 1 1 . . . . . . . . . . . . . . . . . . 1 . . . . Self-Inflicted Damage 1139 | . . . . 14 . 43 . . . . . 547 462 . . . . . 21 50 . . . . . . . 2 Shots 26 | . . . . 1 . 1 . . . . . 12 9 . . . . . 1 2 . . . . . . . . Rammed 35 | . 1 1 6 2 4 . 1 1 . . . . 4 . . . . . . 6 7 . . . . . . 2 Targets Rammed 40 | . 1 1 6 3 4 . 1 1 . . . . 5 . . . . . . 7 9 . . . . . . 2 Kicked . | . . . . . . . . . . . . . . . . . . . . . . . . . . . . . Crushed 5 | . . . . 1 . . . . . . . . 1 . . . . . . 1 2 . . . . . . . Highest Temperature 606 | . 144 108 606 269 277 228 261 327 . 342 . 36 331 204 210 . 472 . 200 551 242 213 240 302 323 228 . 83 Average Temperature 92 | . 48 56 82 56 59 62 44 107 . 143 . 17 107 75 90 . 183 . 71 126 88 100 90 155 126 121 . 60 Received Heat Transfer 6560 | . 294 198 531 369 371 330 74 247 . 278 . . 828 . 18 . 315 . 54 1626 681 . 27 174 51 . . 94 Effects 57 | . . . 24 . . 3 1 . . 4 . . 3 . . . 4 . . 18 . . . . . . . . Shutdowns 5 | . . . 1 . . . . . . . . . . . . . . . . 4 . . . . . . . . Energy Bleed 11 | . . . 2 . . 2 1 . . 1 . . . . . . . . . 5 . . . . . . . . Interference 19 | . . . 5 . . 1 . . . 3 . . 3 . . . 3 . . 4 . . . . . . . . Matter Decay 5 | . . . 4 . . . . . . . . . . . . . 1 . . . . . . . . . . . Short Circuit 1 | . . . . . . . . . . . . . . . . . . . . 1 . . . . . . . . Damage (minor) 2 | . . . 2 . . . . . . . . . . . . . . . . . . . . . . . . . Damage (major) 14 | . . . 10 . . . . . . . . . . . . . . . . 4 . . . . . . . . Siege Activations . | . . . . . . . . . . . . . . . . . . . . . . . . . . . . . Robots Corrupted 12 | . . . . . . . . . . . . . . . . . . . 1 11 . . . . . . . . Combat Hostiles 10 | . . . . . . . . . . . . . . . . . . . 1 9 . . . . . . . . Parts Fried 32 | . . . . . . . . . . . . . . . . . . . 1 31 . . . . . . . . Impact Corruptions 3 | . . 1 . 1 . . . . . . . . 1 . . . . . . . . . . . . . . . Robots Melted 3 | . . . . . . . . . . . . . . . . . 1 . . . 2 . . . . . . . Combat Hostiles 3 | . . . . . . . . . . . . . . . . . 1 . . . 2 . . . . . . . Parts Melted 6 | . . . . . . . . . . . . . . . . . . . 1 1 4 . . . . . . . Heat Transferred 4484 | . . . . . . . . . . . . 111 . . . . 800 . 370 1200 2003 . . . . . . . Parts Sabotaged 7 | . . . . . . . . . . . . . . . . . . . . . . . 7 . . . . . Parts Stolen . | . . . . . . . . . . . . . . . . . . . . . . . . . . . . . Parts Stripped . | . . . . . . . . . . . . . . . . . . . . . . . . . . . . . Power Chain Reactions 4 | . . . . . . . . . . . . . . . . . . . 1 3 . . . . . . . . Alert | -11 -10 -10 -9 -9 -8 -8 -8 -8 -8 -8 -7 -7 -7 -7 -7 -7 -6 -6 -6 -5 -5 -5 -5 -4 -4 -4 -4 -3 ------- Run | Yrd Mat Min Mat Sto Mat Gar Mat Gar Mat Gar Fac Was Fac Low Low Dat Pro Fac DSF Fac Upp Upp War Pro Fac Upp Upp Res Peak Influence 1594 | 5 212 93 750 558 319 911 508 578 281 500 286 120 1594 . . . . 803 792 1194 . . . . 194 . . 115 Initial 803 | . 3 . . 276 220 105 443 167 281 185 262 100 . . . . . 803 562 415 . . . . 150 . . 58 Average 321 | . 34 9 456 319 186 496 261 447 281 391 282 39 643 . . . . 803 660 592 . . . . 94 . . 77 Maximum Alert Level 4 | . 1 . 3 2 1 3 2 2 1 2 1 . 4 . . . . 3 3 4 . . . . . . . . Low Security (%) 41 | 100 98 100 16 19 43 17 40 4 . 2 . 100 36 . . . . . . 6 . . . . 100 . . 100 Level 1 23 | . 1 . 15 56 56 20 45 22 100 48 100 . 14 . . . . . . 15 . . . . . . . . Level 2 27 | . . . 64 24 . 45 13 72 . 49 . . 5 . . . . . 62 50 . . . . . . . . Level 3 4 | . . . 3 . . 16 . . . . . . 20 . . . . 100 37 12 . . . . . . . . Level 4 2 | . . . . . . . . . . . . . 23 . . . . . . 15 . . . . . . . . Level 5 . | . . . . . . . . . . . . . . . . . . . . . . . . . . . . . High Security . | . . . . . . . . . . . . . . . . . . . . . . . . . . . . . Max Security . | . . . . . . . . . . . . . . . . . . . . . . . . . . . . . Sterilizations 2 | . . . 1 . . . . . . . . . . . . . . . 1 . . . . . . . . . Squads Dispatched 60 | . 3 . 10 9 3 . 3 . . . . . 15 . . . . . 1 13 . . . . 3 . . . Investigation 17 | . 1 . 7 5 . . . . . . . . 3 . . . . . . 1 . . . . . . . . Extermination 5 | . . . . . . . . . . . . . 2 . . . . . . 2 . . . . 1 . . . Reinforcement 26 | . 2 . 2 2 2 . 1 . . . . . 5 . . . . . 1 9 . . . . 2 . . . Assault 6 | . . . 1 2 . . . . . . . . 3 . . . . . . . . . . . . . . . Garrison 6 | . . . . . 1 . 2 . . . . . 2 . . . . . . 1 . . . . . . . . Intercept . | . . . . . . . . . . . . . . . . . . . . . . . . . . . . . Searches Triggered 1 | . . . . . . . . . . . . . . . . . . . . 1 . . . . . . . . Construction Impeded 9 | . . . 1 . 1 . . . . . . . 4 . . . . . . 3 . . . . . . . . Haulers Reinforced 3 | . . . . . . . . . . . . . 1 . . . . . . 2 . . . . . . . . Active Scanning Responses . | . . . . . . . . . . . . . . . . . . . . . . . . . . . . . Cargo Convoy Interrupts 1 | . . . . . . . . . . . . . . . . . . . . 1 . . . . . . . . Stealth | -11 -10 -10 -9 -9 -8 -8 -8 -8 -8 -8 -7 -7 -7 -7 -7 -7 -6 -6 -6 -5 -5 -5 -5 -4 -4 -4 -4 -3 --------- Run | Yrd Mat Min Mat Sto Mat Gar Mat Gar Mat Gar Fac Was Fac Low Low Dat Pro Fac DSF Fac Upp Upp War Pro Fac Upp Upp Res Distress Signals 12 | . 2 . . . 2 . 1 . . . . . 3 . . . . . . 2 . . 1 1 . . . . Communications Jammed . | . . . . . . . . . . . . . . . . . . . . . . . . . . . . . Distress Signals . | . . . . . . . . . . . . . . . . . . . . . . . . . . . . . Times Spotted 517 | . 19 6 60 47 44 30 19 12 . 14 . 6 54 2 1 . 13 . 11 68 12 . 32 15 25 4 4 19 Peak Tracking Total 14 | . 6 3 8 10 7 5 4 4 . 6 . 6 10 1 1 . 4 . 3 9 4 . 13 6 13 10 4 14 Tactical Retreats 24 | . . 1 . . 1 1 . . . 1 . . . . . . . . 1 7 1 . 4 2 3 1 . 1 Traps | -11 -10 -10 -9 -9 -8 -8 -8 -8 -8 -8 -7 -7 -7 -7 -7 -7 -6 -6 -6 -5 -5 -5 -5 -4 -4 -4 -4 -3 ------- Run | Yrd Mat Min Mat Sto Mat Gar Mat Gar Mat Gar Fac Was Fac Low Low Dat Pro Fac DSF Fac Upp Upp War Pro Fac Upp Upp Res Traps Triggered 21 | . . . 4 2 . 1 1 3 . 4 1 . 1 . . . . . 1 . . . . . 2 . . 1 Indirectly . | . . . . . . . . . . . . . . . . . . . . . . . . . . . . . Trap Hack Attempts . | . . . . . . . . . . . . . . . . . . . . . . . . . . . . . Triggered . | . . . . . . . . . . . . . . . . . . . . . . . . . . . . . Disarmed . | . . . . . . . . . . . . . . . . . . . . . . . . . . . . . Reprogrammed . | . . . . . . . . . . . . . . . . . . . . . . . . . . . . . Reused . | . . . . . . . . . . . . . . . . . . . . . . . . . . . . . Traps Extracted . | . . . . . . . . . . . . . . . . . . . . . . . . . . . . . Installed . | . . . . . . . . . . . . . . . . . . . . . . . . . . . . . Triggered 19 | . . . . . . . . . . . . . . . . . 1 . . 4 . . 14 . . . . . Machines | -11 -10 -10 -9 -9 -8 -8 -8 -8 -8 -8 -7 -7 -7 -7 -7 -7 -6 -6 -6 -5 -5 -5 -5 -4 -4 -4 -4 -3 ---------- Run | Yrd Mat Min Mat Sto Mat Gar Mat Gar Mat Gar Fac Was Fac Low Low Dat Pro Fac DSF Fac Upp Upp War Pro Fac Upp Upp Res Machines Disabled 45 | . . 1 2 6 . 5 1 4 . . . . 18 . . . . . . 8 . . . . . . . . Max in Single Turn 3 | . . 1 1 1 . 2 1 1 . . . . 1 . . . . . . 3 . . . . . . . . Garrison Access 1 | . . . . . . . . . . . . . 1 . . . . . . . . . . . . . . . Garrison Relay 5 | . . . . . . 2 . 3 . . . . . . . . . . . . . . . . . . . . Phase Generator 1 | . . . . . . 1 . . . . . . . . . . . . . . . . . . . . . . Machines Repaired . | . . . . . . . . . . . . . . . . . . . . . . . . . . . . . Machines Dismantled . | . . . . . . . . . . . . . . . . . . . . . . . . . . . . . Machines Sabotaged . | . . . . . . . . . . . . . . . . . . . . . . . . . . . . . Overloaded Fab Kills . | . . . . . . . . . . . . . . . . . . . . . . . . . . . . . Hacking | -11 -10 -10 -9 -9 -8 -8 -8 -8 -8 -8 -7 -7 -7 -7 -7 -7 -6 -6 -6 -5 -5 -5 -5 -4 -4 -4 -4 -3 --------- Run | Yrd Mat Min Mat Sto Mat Gar Mat Gar Mat Gar Fac Was Fac Low Low Dat Pro Fac DSF Fac Upp Upp War Pro Fac Upp Upp Res Machines Accessed 77 | . 9 . 14 14 5 . 4 2 1 1 1 . 5 . 2 4 . 1 . 6 . 1 2 . 3 . . 2 Terminals 48 | . 6 . 10 12 4 . 2 2 . 1 . . 4 . . . . 1 . 2 . . . . 3 . . 1 Fabricators 3 | . . . . . . . . . . . . . . . . . . . . 3 . . . . . . . . Repair Stations 5 | . 1 . 1 1 . . 1 . . . 1 . . . . . . . . . . . . . . . . . Recycling Units 7 | . 2 . 2 1 . . . . . . . . . . . . . . . 1 . . . . . . . 1 Scanalyzers 1 | . . . 1 . . . . . . . . . . . . . . . . . . . . . . . . . Garrison Access 4 | . . . . . 1 . 1 . 1 . . . 1 . . . . . . . . . . . . . . . Total Hacks 234 | . 37 . 42 37 10 . 11 2 1 3 2 . 12 . 3 28 . 1 . 18 . 1 6 . 13 . . 7 Successful 125 | . 15 . 18 22 4 . 7 1 1 . 1 . 2 . 3 28 . 1 . 7 . 1 6 . 5 . . 3 Failed 109 | . 22 . 24 15 6 . 4 1 . 3 1 . 10 . . . . . . 11 . . . . 8 . . 4 Catastrophic 27 | . 3 . 4 7 1 . . . . 1 . . 6 . . . . . . 3 . . . . . . . 2 Database Lockouts . | . . . . . . . . . . . . . . . . . . . . . . . . . . . . . Manual 107 | . 20 . 28 31 7 . 4 . . . . . 5 . . . . . . 4 . . 1 . 1 . . 6 Terminals 132 | . 20 . 32 28 9 . 6 2 . 3 . . 10 . . . . 1 . 5 . . . . 13 . . 3 Fabricators 9 | . . . . . . . . . . . . . . . . . . . . 9 . . . . . . . . Repair Stations 17 | . 4 . 5 2 . . 4 . . . 2 . . . . . . . . . . . . . . . . . Recycling Units 31 | . 13 . 3 7 . . . . . . . . . . . . . . . 4 . . . . . . . 4 Scanalyzers 2 | . . . 2 . . . . . . . . . . . . . . . . . . . . . . . . . Garrison Access 5 | . . . . . 1 . 1 . 1 . . . 2 . . . . . . . . . . . . . . . Terminal Hacks 81 | . 5 . 8 14 3 . 2 1 . . . . 2 . 3 28 . 1 . 2 . 1 6 . 5 . . . Record 18 | . . . . . . . . . . . . . . . 2 11 . . . . . . 5 . . . . . Part Schematic 10 | . . . . . . . . . . . . . . . . 10 . . . . . . . . . . . . Robot Schematic 4 | . . . . . . . . . . . . . . . . 4 . . . . . . . . . . . . Robot Analysis 6 | . 2 . 3 1 . . . . . . . . . . . . . . . . . . . . . . . . Prototype ID Bank 9 | . 3 . 1 1 . . 1 . . . . . . . . 3 . . . . . . . . . . . . Open Door 8 | . . . . 5 . . . . . . . . . . 1 . . . . . . 1 1 . . . . . Open DSF 1 | . . . . . . . . . . . . . . . . . . 1 . . . . . . . . . . Branch Access Points 3 | . . . . 1 . . . . . . . . 1 . . . . . . . . . . . 1 . . . Terminal Index 1 | . . . . . . . . . . . . . . . . . . . . 1 . . . . . . . . Garrison Index 1 | . . . . 1 . . . . . . . . . . . . . . . . . . . . . . . . Alert Level 5 | . . . 1 2 1 . . . . . . . . . . . . . . 1 . . . . . . . . Unreport Threat 9 | . . . 3 2 2 . 1 . . . . . 1 . . . . . . . . . . . . . . . Security Status 1 | . . . . . . . . . . . . . . . . . . . . . . . . . 1 . . . Patrol Status 1 | . . . . . . . . . . . . . . . . . . . . . . . . . 1 . . . Recall Extermination 1 | . . . . . . . . . . . . . . . . . . . . . . . . . 1 . . . Zone Layout 2 | . . . . 1 . . . . . . . . . . . . . . . . . . . . 1 . . . Security Stations 1 | . . . . . . . . 1 . . . . . . . . . . . . . . . . . . . . Fabricator Hacks 4 | . . . . . . . . . . . . . . . . . . . . 4 . . . . . . . . Network Status 1 | . . . . . . . . . . . . . . . . . . . . 1 . . . . . . . . Load Schematic 1 | . . . . . . . . . . . . . . . . . . . . 1 . . . . . . . . Build 2 | . . . . . . . . . . . . . . . . . . . . 2 . . . . . . . . Repair Station Hacks 13 | . 2 . 4 2 . . 4 . . . 1 . . . . . . . . . . . . . . . . . Scan Component 7 | . 1 . 2 1 . . 2 . . . 1 . . . . . . . . . . . . . . . . . Repair 6 | . 1 . 2 1 . . 2 . . . . . . . . . . . . . . . . . . . . . Recycling Unit Hacks 4 | . 2 . 1 1 . . . . . . . . . . . . . . . . . . . . . . . . Retrieve Components 4 | . 2 . 1 1 . . . . . . . . . . . . . . . . . . . . . . . . Scanalyzer 1 | . . . 1 . . . . . . . . . . . . . . . . . . . . . . . . . Insert Component 1 | . . . 1 . . . . . . . . . . . . . . . . . . . . . . . . . Garrison Access Hacks 3 | . . . . . 1 . 1 . 1 . . . . . . . . . . . . . . . . . . . Unlock Access 3 | . . . . . 1 . 1 . 1 . . . . . . . . . . . . . . . . . . . Unauthorized Hacks 19 | . 6 . 4 5 . . . . . . . . . . . . . . . 1 . . . . . . . 3 Terminals 2 | . . . 2 . . . . . . . . . . . . . . . . . . . . . . . . . Botnet 2 | . . . 2 . . . . . . . . . . . . . . . . . . . . . . . . . Fabricators . | . . . . . . . . . . . . . . . . . . . . . . . . . . . . . Repair Stations 1 | . . . 1 . . . . . . . . . . . . . . . . . . . . . . . . . Mechanics 1 | . . . 1 . . . . . . . . . . . . . . . . . . . . . . . . . Recycling Units 16 | . 6 . 1 5 . . . . . . . . . . . . . . . 1 . . . . . . . 3 Monitor 2 | . 1 . . 1 . . . . . . . . . . . . . . . . . . . . . . . . Reject 4 | . 2 . . 1 . . . . . . . . . . . . . . . . . . . . . . . 1 Recyclers 3 | . 1 . . 1 . . . . . . . . . . . . . . . . . . . . . . . 1 Mask 5 | . 2 . . 1 . . . . . . . . . . . . . . . 1 . . . . . . . 1 Tunnel 2 | . . . 1 1 . . . . . . . . . . . . . . . . . . . . . . . . Scanalyzers . | . . . . . . . . . . . . . . . . . . . . . . . . . . . . . Garrison Access . | . . . . . . . . . . . . . . . . . . . . . . . . . . . . . Data Cores Recovered 1 | . . . . . 1 . . . . . . . . . . . . . . . . . . . . . . . Used . | . . . . . . . . . . . . . . . . . . . . . . . . . . . . . Hacking Detections 61 | . 9 . 13 11 4 . 4 2 . 1 1 . 5 . . . . . . 6 . . . . 3 . . 2 Full Trace Events 16 | . 1 . 5 6 . . . . . . . . 3 . . . . . . 1 . . . . . . . . Feedback Events . | . . . . . . . . . . . . . . . . . . . . . . . . . . . . . Feedback Blocked . | . . . . . . . . . . . . . . . . . . . . . . . . . . . . . Robot Schematics Acquired 4 | . . . . . . . . . . . . . . . . 4 . . . . . . . . . . . . Robots Built . | . . . . . . . . . . . . . . . . . . . . . . . . . . . . . Authchips . | . . . . . . . . . . . . . . . . . . . . . . . . . . . . . Time . | . . . . . . . . . . . . . . . . . . . . . . . . . . . . . Total Robot Build Rating . | . . . . . . . . . . . . . . . . . . . . . . . . . . . . . Part Schematics Acquired 10 | . . . . . . . . . . . . . . . . 10 . . . . . . . . . . . . Parts Built 2 | . . . . . . . . . . . . . . . . . . . . 2 . . . . . . . . Authchips . | . . . . . . . . . . . . . . . . . . . . . . . . . . . . . Time 193 | . . . . . . . . . . . . . . . . . . . . 193 . . . . . . . . Total Part Build Rating 14 | . . . . . . . . . . . . . . . . . . . . 14 . . . . . . . . Parts Repaired 6 | . 1 . 2 1 . . 2 . . . . . . . . . . . . . . . . . . . . . Time 221 | . 26 . 83 26 . . 86 . . . . . . . . . . . . . . . . . . . . . Parts Recycled . | . . . . . . . . . . . . . . . . . . . . . . . . . . . . . Recycled Matter . | . . . . . . . . . . . . . . . . . . . . . . . . . . . . . Retrieved Matter . | . . . . . . . . . . . . . . . . . . . . . . . . . . . . . Retrieved Components 28 | . 9 . 10 9 . . . . . . . . . . . . . . . . . . . . . . . . Parts Scanalyzed . | . . . . . . . . . . . . . . . . . . . . . . . . . . . . . Part Schematics Acquired . | . . . . . . . . . . . . . . . . . . . . . . . . . . . . . Parts Damaged . | . . . . . . . . . . . . . . . . . . . . . . . . . . . . . Bothacking | -11 -10 -10 -9 -9 -8 -8 -8 -8 -8 -8 -7 -7 -7 -7 -7 -7 -6 -6 -6 -5 -5 -5 -5 -4 -4 -4 -4 -3 ------------ Run | Yrd Mat Min Mat Sto Mat Gar Mat Gar Mat Gar Fac Was Fac Low Low Dat Pro Fac DSF Fac Upp Upp War Pro Fac Upp Upp Res Used RIF Installer . | . . . . . . . . . . . . . . . . . . . . . . . . . . . . . Robots Hacked . | . . . . . . . . . . . . . . . . . . . . . . . . . . . . . Non-combat . | . . . . . . . . . . . . . . . . . . . . . . . . . . . . . Combat . | . . . . . . . . . . . . . . . . . . . . . . . . . . . . . Robot Hacks Applied . | . . . . . . . . . . . . . . . . . . . . . . . . . . . . . Relay Couplers Released 22 | . . . . . . 6 . 12 . . . . 4 . . . . . . . . . . . . . . . Machine Destruction 22 | . . . . . . 6 . 12 . . . . 4 . . . . . . . . . . . . . . . Fabnet Peak Effective % . | . . . . . . . . . . . . . . . . . . . . . . . . . . . . . Robots Rewired 8 | . . . . . . 3 . . . . . . . . . . . . . . . . 5 . . . . . Allies Hacked . | . . . . . . . . . . . . . . . . . . . . . . . . . . . . . Hacks Repelled . | . . . . . . . . . . . . . . . . . . . . . . . . . . . . . Allies | -11 -10 -10 -9 -9 -8 -8 -8 -8 -8 -8 -7 -7 -7 -7 -7 -7 -6 -6 -6 -5 -5 -5 -5 -4 -4 -4 -4 -3 -------- Run | Yrd Mat Min Mat Sto Mat Gar Mat Gar Mat Gar Fac Was Fac Low Low Dat Pro Fac DSF Fac Upp Upp War Pro Fac Upp Upp Res Total Allies 42 | . . 3 . 12 . 3 . . . . . 18 . . . . 1 . . . . . 5 . . . . . Largest Group 18 | . . 2 . 10 9 3 3 . . . . 18 15 . . . 1 . . . . . 5 . . . . . Highest-Rated Group 444 | . . 41 . 88 80 15 15 . . . . 444 401 . . . 96 . . . . . 240 . . . . . Highest-Rated Ally 96 | . . 31 . 31 16 5 5 . . . . 35 35 . . . 96 . . . . . 68 . . . . . Total Orders 14 | . . . . 4 10 . . . . . . . . . . . . . . . . . . . . . . . STAY 10 | . . . . 2 8 . . . . . . . . . . . . . . . . . . . . . . . FOLLOW 4 | . . . . 2 2 . . . . . . . . . . . . . . . . . . . . . . . Ally Attacks 362 | . . 11 . 38 20 . 40 . . . . 133 104 . . . 5 . . . . . 11 . . . . . Total Damage 9676 | . . 169 . 416 147 . 217 . . . . 3898 4233 . . . 180 . . . . . 416 . . . . . Kills 69 | . . 1 . 6 . . 1 . . . . 8 49 . . . 1 . . . . . 3 . . . . . Allies Corrupted . | . . . . . . . . . . . . . . . . . . . . . . . . . . . . . Allies Melted 2 | . . . . . . . . . . . . . . . . . . . . . . . 2 . . . . . Intel | -11 -10 -10 -9 -9 -8 -8 -8 -8 -8 -8 -7 -7 -7 -7 -7 -7 -6 -6 -6 -5 -5 -5 -5 -4 -4 -4 -4 -3 ------- Run | Yrd Mat Min Mat Sto Mat Gar Mat Gar Mat Gar Fac Was Fac Low Low Dat Pro Fac DSF Fac Upp Upp War Pro Fac Upp Upp Res Robot Analysis Total 5 | . 2 . 3 . . . . . . . . . . . . . . . . . . . . . . . . . Derelict Logs Recovered 9 | . . 2 . . . . . . . . . . . 1 3 . . . . . 1 . . . . 2 . . Drone Launches . | . . . . . . . . . . . . . . . . . . . . . . . . . . . . . Drone Recoveries . | . . . . . . . . . . . . . . . . . . . . . . . . . . . . . Exploration | -11 -10 -10 -9 -9 -8 -8 -8 -8 -8 -8 -7 -7 -7 -7 -7 -7 -6 -6 -6 -5 -5 -5 -5 -4 -4 -4 -4 -3 ------------- Run | Yrd Mat Min Mat Sto Mat Gar Mat Gar Mat Gar Fac Was Fac Low Low Dat Pro Fac DSF Fac Upp Upp War Pro Fac Upp Upp Res Turns Passed 32472 | 109 2228 2042 4381 2800 2345 1154 1062 992 89 744 182 1076 1586 932 1996 138 791 70 441 2147 1153 544 1626 614 921 132 47 130 Spaces Moved 13243 | 49 756 616 1509 939 841 360 334 337 37 257 74 459 515 369 815 80 412 30 120 738 485 212 707 441 979 313 148 311 Core 281 | 2 . . . . . . . . . . . 139 . . . . . . 3 . . . 24 . . . . 113 Treads 10725 | 47 756 616 1509 939 841 360 334 337 37 257 74 320 515 369 815 80 412 30 117 738 485 212 525 . . . . . Legs . | . . . . . . . . . . . . . . . . . . . . . . . . . . . . . Wheels . | . . . . . . . . . . . . . . . . . . . . . . . . . . . . . Hover 621 | . . . . . . . . . . . . . . . . . . . . . . . 145 441 35 . . . Flight 1616 | . . . . . . . . . . . . . . . . . . . . . . . 13 . 944 313 148 198 Fastest Speed 27 | 50 160 320 240 240 240 240 240 240 240 240 240 50 240 240 160 160 160 240 160 160 170 250 30 45 27 29 30 30 Average Speed 205 | 155 238 320 240 240 240 243 240 240 240 240 240 223 258 240 234 170 166 240 239 194 206 250 212 90 67 29 30 37 Slowest Speed 750 | 160 320 320 240 240 240 320 240 240 240 240 240 320 320 240 240 240 240 240 750 250 250 250 250 151 182 30 30 50 Overloaded Moves . | . . . . . . . . . . . . . . . . . . . . . . . . . . . . . Propulsion Burnouts . | . . . . . . . . . . . . . . . . . . . . . . . . . . . . . Robots Hopped 27 | . . . . . . . . . . . . . . . . . . . . . . . . . 23 1 . 3 Cave-ins Triggered 1 | . . . . . . . . . . . . 1 . . . . . . . . . . . . . . . . Exploration Rate (%) 49 | 4 97 99 98 88 47 46 31 49 5 30 2 96 19 57 83 69 65 1 70 14 59 45 75 66 26 57 18 10 Regions Visited 28 Branch Regions 12 Pre-discovered Areas 6 | . . . 1 1 . . . . . . . . . 1 . 1 . . . . 1 . . . . 1 . . Known Exits Taken 9 | . . . . . 1 . 1 . 1 . . . 1 . . . . 1 . 1 1 1 . . 1 . . . Unknown Exits Taken 13 | 1 1 1 1 1 . . . . . . . . . 1 1 1 1 . . . . . 1 1 . 1 1 . Scrap Searched 14 | . . 1 . . . . . . . . . . . . 3 . 3 . . . 2 2 . 3 . . . . Spaces Dug 26 | . . . . 23 . . . . . . . . 1 . . . . . . . . 1 1 . . . . . Terrain Destroyed 635 | . . . 85 24 4 89 1 . . . . 62 102 19 . . 5 . 10 119 . 1 60 54 . . . . Melee 1 | . . . . . . . . . . . . . . . . . . . . . . 1 . . . . . . Projectile 122 | . . . 7 1 4 2 1 . . . . . 21 2 . . 3 . . 71 . . 4 6 . . . . AOE 509 | . . . 78 23 . 86 . . . . . 62 81 17 . . 1 . 9 48 . . 56 48 . . . . Terrain Rammed . | . . . . . . . . . . . . . . . . . . . . . . . . . . . . . Walls Destroyed . | . . . . . . . . . . . . . . . . . . . . . . . . . . . . . Machines Disabled . | . . . . . . . . . . . . . . . . . . . . . . . . . . . . . Actions | -11 -10 -10 -9 -9 -8 -8 -8 -8 -8 -8 -7 -7 -7 -7 -7 -7 -6 -6 -6 -5 -5 -5 -5 -4 -4 -4 -4 -3 --------- Run | Yrd Mat Min Mat Sto Mat Gar Mat Gar Mat Gar Fac Was Fac Low Low Dat Pro Fac DSF Fac Upp Upp War Pro Fac Upp Upp Res Total 16798 | 67 1054 654 2055 1283 1020 504 525 465 37 348 80 498 626 398 890 83 497 29 217 1177 575 230 823 637 1208 348 149 321 Wait 1535 | . 177 4 327 175 73 24 122 60 . 16 . 1 7 . 24 . 12 . 21 115 6 . 11 166 148 34 2 10 Move 13167 | 48 755 615 1508 938 841 357 334 336 37 256 74 457 514 368 814 79 411 29 119 737 484 211 706 440 936 310 147 306 Hop 22 | . . . . . . . . . . . . . . . . . . . . . . . . . 19 1 . 2 Pick Up 317 | 6 31 8 29 36 12 7 12 8 . 8 2 7 10 7 10 . 14 . 11 43 11 8 11 1 25 . . . Fast Attach 108 | 6 4 . 4 2 3 1 2 . . 1 . 7 7 1 1 2 7 . 8 13 6 . 20 2 10 . . 1 Attach 152 | . 1 3 8 11 4 7 . 2 . 8 2 4 7 2 9 . 8 . 11 31 10 . 3 3 18 . . . Detach 47 | . . . . 1 . . . . . 3 . 1 1 . 7 . 3 . 7 2 1 . 4 3 14 . . . Swap 108 | . 3 1 27 10 6 1 3 4 . 4 1 3 3 2 . . 2 . 3 24 . 2 3 1 5 . . . Drop 211 | 1 15 5 30 4 9 1 12 9 . 4 1 8 3 . 6 2 18 . 7 24 6 8 19 3 15 1 . . Fire 1009 | 6 67 17 116 103 68 79 39 39 . 44 . 9 65 18 19 . 22 . 30 181 42 . 7 18 18 2 . . Melee 1 | . . . . . . . . . . . . . . . . . . . . . . 1 . . . . . . Ram 2 | . . . . . . . . . . . . . . . . . . . . . . . . . . . . 2 Kick . | . . . . . . . . . . . . . . . . . . . . . . . . . . . . . Crush 38 | . 1 1 6 3 4 . 1 1 . . . . 5 . . . . . . 7 9 . . . . . . . Escape Stasis 15 | . . . . . . . . 6 . 4 . 1 4 . . . . . . . . . . . . . . . Rewire 66 | . . . . . . 27 . . . . . . . . . . . . . . . . 39 . . . . . Trap . | . . . . . . . . . . . . . . . . . . . . . . . . . . . . . Miscellaneous . | . . . . . . . . . . . . . . . . . . . . . . . . . . . . . Route ------- -11/Scrapyard -10/Materials (discovered 5 exits: *Mat x3 / [*Min x2]) -10/Mines (discovered 4 exits: *Mat x2 / [*Exi] / *Sub) -9/Materials (discovered 7 exits: *Mat x3 / [*Min x2] / *Sto x2) -9/Storage (discovered 2 exits: *Mat / Rec) -8/Materials (discovered 2 exits: *Fac / Gar) -8/Garrison (discovered 2 exits: *Mat x2) -8/Materials -8/Garrison -8/Materials -8/Garrison -7/Factory -7/Waste -7/Factory (discovered 2 exits: *Low x2) -7/Lower Caves -7/Lower Caves (discovered 2 exits: *Fac / *Dat) -7/Data Miner -6/Proximity Caves -6/Factory (discovered 2 exits: Fac / DSF) -6/DSF -5/Factory -5/Upper Caves -5/Upper Caves -5/Warlord -4/Proximity Caves -4/Factory (discovered 6 exits: *Res / *Upp x2 / Ext x2 / Arm) -4/Upper Caves -4/Upper Caves -3/Research History --------- Turn | Location | Event 24 | -11/Scrapyard | Discovered new exit (range 16) 110 | -11/Scrapyard | Entered Materials 301 | -10/Materials | Build established: Mutant 589 | -10/Materials | Discovered new exit (range 14) 773 | -10/Materials | Discovered new exit (range 8) 885 | -10/Materials | Discovered new exit (range 9) 1019 | -10/Materials | Repaired Lgt. Treads 1070 | -10/Materials | Discovered new exit (range 8) 1669 | -10/Materials | Discovered new exit (range 8) 2338 | -10/Materials | Entered Mines 2375 | -10/Mines | Met a Derelict bent on vengeance 2476 | -10/Mines | Identified exit to Subcaves 2508 | -10/Mines | Found a damaged Exp. Sensor Array with a note attached 2515 | -10/Mines | Found Prototype Device 2535 | -10/Mines | Learned Materials terminal intel 2623 | -10/Mines | Discovered new exit (range 10) 2901 | -10/Mines | Discovered new exit (range 5) 3392 | -10/Mines | Lost 3 parts (1n2w) 3879 | -10/Mines | Received a Mining Laser from a helpful Derelict 4274 | -10/Mines | Deemed a non-threat by the Exiles lab entrance 4280 | -10/Mines | Discovered new exit (range 5) 4380 | -10/Mines | Entered Materials 4380 | -9/Materials | Evolved 2 slots: Propulsion x1, Utility x1 4381 | -9/Materials | Loaded intel: 12 terminal locations 4382 | -9/Materials | Discovered new exit (range 6) 4845 | -9/Materials | Discovered new exit (range 15) 5219 | -9/Materials | Discovered new exit (range 15) 5311 | -9/Materials | Destroyed 9 combat bots 5386 | -9/Materials | Discovered new exit (range 8) 5980 | -9/Materials | Discovered new exit (range 16) 6613 | -9/Materials | Repaired Cld. Ion Engine 6652 | -9/Materials | Repaired Rocket Launcher 6973 | -9/Materials | Discovered new exit (range 14) 7363 | -9/Materials | Discovered new exit (range 16) 7980 | -9/Materials | First assault squad dispatched 8078 | -9/Materials | Sterilization system engaged 8078 | -9/Materials | Non-combat units ordered to evacuate 8178 | -9/Materials | Combat units ordered to evacuate 8378 | -9/Materials | Ambient heat levels rising (+10) 8528 | -9/Materials | Ambient heat levels rising (+10) 8678 | -9/Materials | Ambient heat levels rising (+10) 8761 | -9/Materials | Entered Storage 8839 | -9/Storage | Repaired Huge Storage Unit 8993 | -9/Storage | Core integrity fell below 50% 9039 | -9/Storage | Identified exit to Recycling 9101 | -9/Storage | Build established: Hacker-Mutant 9180 | -9/Storage | Lost 4 parts (1p2n1w) 9432 | -9/Storage | Build established: Scavenger-Mutant 9588 | -9/Storage | Discovered new exit (range 16) 9654 | -9/Storage | Met a pair of Derelict thieves 9741 | -9/Storage | Lost 3 parts (2n1w) 9757 | -9/Storage | Destroyed 9 combat bots 10634 | -9/Storage | Assisted by bots powering up and referring to "LRC-V3" 10929 | -9/Storage | Build established: Commander-Mutant 11561 | -9/Storage | Entered Materials 11561 | -8/Materials | Accompanied by 9 allies 11561 | -8/Materials | Evolved 2 slots: Utility x1, Weapon x1 11944 | -8/Materials | Build established: Commander-Gunner 12547 | -8/Materials | Destroyed 7 combat bots 12799 | -8/Materials | Build established: Commander-Tank 13123 | -8/Materials | Discovered new exit (range 14) 13800 | -8/Materials | Lost 8 allies 13814 | -8/Materials | Garrison activated, responded to threat 13905 | -8/Materials | Identified exit to Garrison 13906 | -8/Materials | Entered Garrison 13932 | -8/Garrison | Triggered checkpoint 13964 | -8/Garrison | Triggered checkpoint 14040 | -8/Garrison | Build established: Scavenger-Tank 14126 | -8/Garrison | Garrison Relay disabled 14344 | -8/Garrison | Phase Generator disabled 14458 | -8/Garrison | Triggered checkpoint 14490 | -8/Garrison | Triggered checkpoint 14509 | -8/Garrison | Triggered checkpoint 14600 | -8/Garrison | Lost 5 parts (3n1u1w) 14760 | -8/Garrison | Discovered new exit (range 15) 14832 | -8/Garrison | Attempted to access garrison exit controls, blocked by remote lockdown 14908 | -8/Garrison | Triggered checkpoint 14975 | -8/Garrison | Garrison Relay disabled 14979 | -8/Garrison | Destroyed 8 combat bots 14998 | -8/Garrison | Triggered checkpoint 15017 | -8/Garrison | Discovered new exit (range 3) 15060 | -8/Garrison | Entered Materials 15060 | -8/Materials | Accompanied by 3 allies 15196 | -8/Materials | Lost 3 allies 15882 | -8/Materials | Repaired Enh. Autogun 15910 | -8/Materials | Repaired Lgt. Armor Plating 16008 | -8/Materials | Garrison activated, responded to threat 16122 | -8/Materials | Identified exit to Garrison 16122 | -8/Materials | Entered Garrison 16148 | -8/Garrison | Triggered checkpoint 16185 | -8/Garrison | Garrison Relay disabled 16333 | -8/Garrison | Garrison Relay disabled 16432 | -8/Garrison | Triggered checkpoint 16548 | -8/Garrison | Triggered checkpoint 16627 | -8/Garrison | Learned Materials security intel 16654 | -8/Garrison | Garrison Relay disabled 16761 | -8/Garrison | Core integrity fell below 50% 17062 | -8/Garrison | Build established: Tank 17075 | -8/Garrison | Discovered new exit (range 10) 17114 | -8/Garrison | Entered Materials 17203 | -8/Materials | Identified exit to Garrison 17203 | -8/Materials | Entered Garrison 17325 | -8/Garrison | Triggered checkpoint 17479 | -8/Garrison | Triggered checkpoint 17570 | -8/Garrison | Spotted B-75 Beast 17637 | -8/Garrison | Lost 3 parts (2n1u) 17661 | -8/Garrison | Core integrity fell below 20% 17676 | -8/Garrison | Destroyed B-75 Beast 17701 | -8/Garrison | Lost 3 parts (1n2w) 17916 | -8/Garrison | Discovered new exit (range 12) 17947 | -8/Garrison | Entered Factory 17947 | -7/Factory | Evolved 2 slots: Utility x2 18129 | -7/Factory | Sucked down chute 18129 | -7/Factory | Entered Waste 18162 | -7/Waste | Spotted C-40 Crusher 18179 | -7/Waste | Crushed by Compactor (1 part destroyed, 1 dropped) 18181 | -7/Waste | Released all parts (5) 18188 | -7/Waste | Spotted C-40 Crusher 18200 | -7/Waste | Spotted C-40 Crusher 18210 | -7/Waste | Lost 7 parts (3n1u3w) 18211 | -7/Waste | Crushed by falling debris 18219 | -7/Waste | Spotted C-40 Crusher 18224 | -7/Waste | Spotted C-40 Crusher 18225 | -7/Waste | Spotted C-40 Crusher 18234 | -7/Waste | Warlord forces began an assault 18248 | -7/Waste | Allies destroyed C-40 Crusher 18249 | -7/Waste | Found Damper Plating 18255 | -7/Waste | Allies destroyed C-40 Crusher 18256 | -7/Waste | Allies destroyed C-40 Crusher 18259 | -7/Waste | Allies destroyed C-40 Crusher 18277 | -7/Waste | Allies destroyed C-40 Crusher 18290 | -7/Waste | Lost 3 allies 19112 | -7/Waste | Discovered new exit (range 11) 19205 | -7/Waste | Entered Factory 19205 | -7/Factory | Accompanied by 15 allies 19762 | -7/Factory | P-60 Hacker assimilated allied W7-N57(l) 19815 | -7/Factory | Lost 4 allies 20361 | -7/Factory | Identified exit to Lower Caves 20405 | -7/Factory | First assault squad dispatched 20448 | -7/Factory | Lost 3 allies 20565 | -7/Factory | Lost 4 parts (2p2w) 20589 | -7/Factory | Destroyed 16 combat bots 20791 | -7/Factory | Entered Lower Caves 20798 | -7/Lower Caves | Met a Warlord Commander 20799 | -7/Lower Caves | Learned location of Warlord (-5) 20800 | -7/Lower Caves | Warlord Commander delivered Encrypted Comm Array 20800 | -7/Lower Caves | Found Unknown Device 20800 | -7/Lower Caves | Identified Encrypted Comm Array 20929 | -7/Lower Caves | Encountered a Warlord checkpoint 21391 | -7/Lower Caves | Learned location of 1 exit from Factory 21636 | -7/Lower Caves | Discovered new exit (range 8) 21723 | -7/Lower Caves | Entered another Lower Caves area 21750 | -7/Lower Caves | Found Prototype Device 21752 | -7/Lower Caves | Identified Heart of Steel 21813 | -7/Lower Caves | Build established: Mutant 21859 | -7/Lower Caves | Discovered new exit (range 12) 22457 | -7/Lower Caves | Learned Factory security intel 23516 | -7/Lower Caves | Encountered a Warlord checkpoint 23535 | -7/Lower Caves | Attracted the attention of an 0b10 checkpoint 23618 | -7/Lower Caves | Learned Factory terminal intel 23688 | -7/Lower Caves | Learned Factory terminal intel 23688 | -7/Lower Caves | Discovered new exit (range 12) 23719 | -7/Lower Caves | Entered Data Miner 23719 | -7/Data Miner | Discovered new exit (range 6) 23756 | -7/Data Miner | Met Data Miner 23785 | -7/Data Miner | Learned location of Section 7 (-3) 23785 | -7/Data Miner | Acquired the access code to Warlord's prototype stash 23812 | -7/Data Miner | Received God Mode back door access code from Data Miner 23857 | -7/Data Miner | Entered Proximity Caves 23859 | -6/Proximity Caves | Spotter reported a threat 23860 | -6/Proximity Caves | Spotter reported a threat 23947 | -6/Proximity Caves | Escorted by Enhanced Grunt 24051 | -6/Proximity Caves | Spotter reported a threat 24053 | -6/Proximity Caves | Spotter reported a threat 24304 | -6/Proximity Caves | Spotter reported a threat 24309 | -6/Proximity Caves | Encountered a Derelict sapper outpost 24388 | -6/Proximity Caves | Attracted the attention of an 0b10 checkpoint 24579 | -6/Proximity Caves | Discovered new exit (range 15) 24648 | -6/Proximity Caves | Entered Factory 24648 | -6/Factory | Evolved 2 slots: Utility x2 24649 | -6/Factory | Identified exit to Factory 24651 | -6/Factory | Loaded intel: 26 terminal locations 24718 | -6/Factory | Identified exit to DSF 24718 | -6/Factory | Entered DSF 24746 | -6/DSF | Additional patrols routed to DSF 24915 | -6/DSF | Discovered exit to Factory (range 15) 25081 | -6/DSF | Sterilization system engaged 25101 | -6/DSF | Ambient heat levels rising (+10) 25116 | -6/DSF | Ambient heat levels rising (+10) 25123 | -6/DSF | Build established: Scavenger-Tank 25131 | -6/DSF | Ambient heat levels rising (+10) 25146 | -6/DSF | Ambient heat levels rising (+10) 25159 | -6/DSF | Entered Factory 25159 | -5/Factory | Evolved 2 slots: Power x1, Propulsion x1 25160 | -5/Factory | Loaded intel: 26 terminal locations 25294 | -5/Factory | Fabricated Imp. Force Field? 25415 | -5/Factory | Discovered new exit (range 8) 25459 | -5/Factory | Search patrols dispatched 25714 | -5/Factory | Lost 7 parts (1p3n1u2w) 25869 | -5/Factory | Specialist reinforcements revealed to be Infiltrators 26117 | -5/Factory | System corruption reached 10% 26133 | -5/Factory | Cargo convoy interrupted 26579 | -5/Factory | Garrison activated, responded to threat 26673 | -5/Factory | Lost 6 parts (2n1u3w) 26753 | -5/Factory | Lost 3 parts (1n1u1w) 26920 | -5/Factory | Destroyed 7 combat bots 27099 | -5/Factory | Core integrity fell below 50% 27164 | -5/Factory | Lost 7 parts (1p1n2u3w) 27209 | -5/Factory | Found Prototype Device 27303 | -5/Factory | Identified exit to Upper Caves 27306 | -5/Factory | Entered Upper Caves 27370 | -5/Upper Caves | Lost 6 parts (2u4w) 27497 | -5/Upper Caves | Spotted B-75 Beast 27603 | -5/Upper Caves | Build established: Scavenger-Mutant 27919 | -5/Upper Caves | Identified Active Sensor Suite 28070 | -5/Upper Caves | Discovered new exit (range 3) 28073 | -5/Upper Caves | Identified exit to Upper Caves 28388 | -5/Upper Caves | Build established: Scavenger-Assassin 28459 | -5/Upper Caves | Entered another Upper Caves area 28914 | -5/Upper Caves | Encountered a Warlord checkpoint 28968 | -5/Upper Caves | Discovered new exit (range 15) 28969 | -5/Upper Caves | Build established: Scavenger-Skirmisher 29000 | -5/Upper Caves | Identified exit to Warlord 29003 | -5/Upper Caves | Entered Warlord 29078 | -5/Warlord | Discovered new exit (range 8) 29178 | -5/Warlord | System corruption cleaned by Quarantine Array 29780 | -5/Warlord | Visited the Vortex Lab 29787 | -5/Warlord | Warlord's base attacked by MAIN.C 29807 | -5/Warlord | Met EX-DEC 29810 | -5/Warlord | Found Prototype Energy Cannon 29820 | -5/Warlord | Found Prototype Energy Gun 29820 | -5/Warlord | Identified Vortex Rifle 29823 | -5/Warlord | Found Vortex Rifle 30137 | -5/Warlord | Warlord forces counterattacked 30142 | -5/Warlord | Found Prototype Special Weapon 30142 | -5/Warlord | Identified RU-N14's Throwing Claymores v3 30146 | -5/Warlord | Found RU-N14's Throwing Claymores v3 30153 | -5/Warlord | Found RU-N14's Throwing Claymores v3 30157 | -5/Warlord | Found RU-N14's Throwing Claymores v3 30273 | -5/Warlord | Spotted Executioner 30273 | -5/Warlord | Spotted Executioner 30279 | -5/Warlord | Spotted Executioner 30280 | -5/Warlord | Spotted JK-QAG(B) 30284 | -5/Warlord | Destroyed JK-QAG(B) 30284 | -5/Warlord | Destroyed Executioner 30325 | -5/Warlord | Lost 8 allies 30364 | -5/Warlord | Met Warlord 30388 | -5/Warlord | Released all parts (6) 30397 | -5/Warlord | Opened Warlord's prototype stash 30409 | -5/Warlord | Found Prototype Hackware 30409 | -5/Warlord | Identified System Mapper 30411 | -5/Warlord | Found Prototype Processor 30412 | -5/Warlord | Identified Exp. Core Analyzer 30416 | -5/Warlord | Found Prototype Device 30416 | -5/Warlord | Identified Thermal Barrier 30420 | -5/Warlord | Found Prototype Reactor 30420 | -5/Warlord | Identified Vortex Chain Reactor 30453 | -5/Warlord | Spotted Striker 30462 | -5/Warlord | Warlord base infiltrated, sounded retreat 30463 | -5/Warlord | Enhanced Grunt warped into view 30463 | -5/Warlord | Enhanced Grunt warped into view 30463 | -5/Warlord | Enhanced Grunt warped into view 30463 | -5/Warlord | Enhanced Demolisher warped into view 30463 | -5/Warlord | Enhanced Demolisher warped into view 30463 | -5/Warlord | Enhanced Demolisher warped into view 30517 | -5/Warlord | Spotted Striker 30517 | -5/Warlord | Spotted Striker 30553 | -5/Warlord | Lost 3 allies 30575 | -5/Warlord | Found Prototype Ballistic Cannon 30575 | -5/Warlord | Identified Hvy. Autocannon 30600 | -5/Warlord | Core integrity fell below 20% 30629 | -5/Warlord | Entered Proximity Caves 30682 | -4/Proximity Caves | Attracted the attention of an 0b10 base 30684 | -4/Proximity Caves | Spotter reported a threat 31001 | -4/Proximity Caves | Discovered new exit (range 5) 31031 | -4/Proximity Caves | Build established: Hacker-Mutant 31083 | -4/Proximity Caves | Received a Behemoth hack from an annoying Tinkerer 31243 | -4/Proximity Caves | Entered Factory 31243 | -4/Factory | Evolved 2 slots: Propulsion x2 31758 | -4/Factory | Lost 5 parts (1p3u1w) 31803 | -4/Factory | Found Prototype Launcher 31806 | -4/Factory | Identified Tesla Bomb Launcher 32073 | -4/Factory | Lost 4 parts (2n2u) 32096 | -4/Factory | Spotted B-86 Titan 32099 | -4/Factory | Identified exit to Upper Caves 32099 | -4/Factory | Identified exit to Extension 32099 | -4/Factory | Identified exit to Armory 32135 | -4/Factory | Discovered new exit (range 7) 32164 | -4/Factory | Entered Upper Caves 32191 | -4/Upper Caves | Learned Research stockpile data 32286 | -4/Upper Caves | Discovered new exit (range 19) 32289 | -4/Upper Caves | Attracted the attention of an 0b10 checkpoint 32293 | -4/Upper Caves | Learned location of Quarantine (-3) 32296 | -4/Upper Caves | Entered another Upper Caves area 32327 | -4/Upper Caves | Spotted B-86 Titan 32332 | -4/Upper Caves | Discovered new exit (range 5) 32343 | -4/Upper Caves | Entered Research 32343 | -3/Research | Evolved 2 slots: Propulsion x2 32355 | -3/Research | Found Prototype Processor 32355 | -3/Research | Identified Spectral Analyzer 32448 | -3/Research | Core integrity fell below 50% 32459 | -3/Research | Lost 3 parts (1n2u) 32461 | -3/Research | Core integrity fell below 20% 32473 | -3/Research | Destroyed by S-43 Plague with Heavy Machine Gun Last Messages --------------- 32425_ T-07 Excavator destroyed. 32428_ System corrupted: Heat flow error (+129). 32428_ Adv. Sensor Array destroyed. 32432_ U-05 Engineer builds a Door. 32440_ Triggered Shock Trap. 32440_ The floor emits a surge of raw power. 32440_ System corrupted (+2). 32451_ OU0HL%RP:XVKRE